Workbook

Sheet 請求書1枚目
A1: （請求元保管） | D1: 請 求 書 （控) | P1: No. | Q1: 1
A3: ＳＫマテリアル株式会社 御中
H4: 〒
A5: 納入場所 | H5: 住所
H6: 社名
H7: 電話
H8: 適格請求書 発行事業者登録番号 | J8: T | L8: - | N8: - | P8: -
R10: 0.1
A11: 下記のとおり請求いたします。 | R11: 8%（軽減税率対象）
A12: 金 額 | B12: 円 | E12: =IF(E13="","","適格請求書発行事業者の方は登録番号の入力をお願いいたします。") -> 適格請求書発行事業者の方は登録番号の入力をお願いいたします。 | R12: 非課税
B13: =+F39+F40+K39+K40 -> 0 | E13: =IF(K8="","※","") -> ※ | R13: 不課税
A16: 品 名 | D16: 単位 | E16: 数量 | F16: 単価 | G16: 金 額 | M16: 摘 要 | R16: 消費税区分
A17: （形状・寸法） | R17: 選択 | S17: 税率 | T17: 消費税額
G18: =ROUND(E18*F18,0) -> 0 | K18: =+IF(R18="8%（軽減税率対象）","＊", ) -> 0 | S18: =IF(R18="8%（軽減税率対象）",8%,R18) -> 0 | T18: =IF(OR(R18="非課税",S18="不課税"),G18*0,G18*S18) -> 0
G20: =ROUND(E20*F20,0) -> 0 | K20: =+IF(R20="8%（軽減税率対象）","＊", ) -> 0 | S20: =IF(R20="8%（軽減税率対象）",8%,R20) -> 0 | T20: =IF(OR(R20="非課税",S20="不課税"),G20*0,G20*S20) -> 0
G22: =ROUND(E22*F22,0) -> 0 | K22: =+IF(R22="8%（軽減税率対象）","＊", ) -> 0 | S22: =IF(R22="8%（軽減税率対象）",8%,R22) -> 0 | T22: =IF(OR(R22="非課税",S22="不課税"),G22*0,G22*S22) -> 0
G24: =ROUND(E24*F24,0) -> 0 | K24: =+IF(R24="8%（軽減税率対象）","＊", ) -> 0 | S24: =IF(R24="8%（軽減税率対象）",8%,R24) -> 0 | T24: =IF(OR(R24="非課税",S24="不課税"),G24*0,G24*S24) -> 0
G26: =ROUND(E26*F26,0) -> 0 | K26: =+IF(R26="8%（軽減税率対象）","＊", ) -> 0 | S26: =IF(R26="8%（軽減税率対象）",8%,R26) -> 0 | T26: =IF(OR(R26="非課税",S26="不課税"),G26*0,G26*S26) -> 0
G28: =ROUND(E28*F28,0) -> 0 | K28: =+IF(R28="8%（軽減税率対象）","＊", ) -> 0 | S28: =IF(R28="8%（軽減税率対象）",8%,R28) -> 0 | T28: =IF(OR(R28="非課税",S28="不課税"),G28*0,G28*S28) -> 0
G30: =ROUND(E30*F30,0) -> 0 | K30: =+IF(R30="8%（軽減税率対象）","＊", ) -> 0 | S30: =IF(R30="8%（軽減税率対象）",8%,R30) -> 0 | T30: =IF(OR(R30="非課税",S30="不課税"),G30*0,G30*S30) -> 0
G32: =ROUND(E32*F32,0) -> 0 | K32: =+IF(R32="8%（軽減税率対象）","＊", ) -> 0 | S32: =IF(R32="8%（軽減税率対象）",8%,R32) -> 0 | T32: =IF(OR(R32="非課税",S32="不課税"),G32*0,G32*S32) -> 0
A34: 品代計 | G34: =IF(SUM(G18:J33)=0,"",IF(SUM('続き(2枚目)'!G13:J38)=0,SUM(G18:J33),"")) ->  | T34: =SUM(T18:T33) -> 0
A35: =+D38 -> 消費税相当額 | G35: =IF(G34="","",D39+D40) -> 
A36: 合 計 | G36: =IF(G34="","",G34+G35) -> 
B38: 本体 | D38: =IF(K8="","消費税相当額","消費税") -> 消費税相当額 | F38: =IF(K8="","合計","税込") -> 合計 | K38: 本体
A39: 10％対象 | B39: =SUMIF($R$18:$R$33,R10,$G$18:$J$33)+SUMIF('続き(2枚目)'!$R$13:$R$38,'続き(2枚目)'!R154,'続き(2枚目)'!G13:J38)+SUMIF('続き(3枚目)'!$R$13:$R$38,'続き(3枚目)'!R154,'続き(3枚目)'!G13:J38) -> 0 | D39: =IF(B39="",0,ROUND(B39*10/100,0)) -> 0 | F39: =+B39+D39 -> 0 | I39: 非課税対象 | K39: =SUMIF($R$18:$R$33,R12,$G$18:$J$33)+SUMIF('続き(2枚目)'!$R$13:$R$38,'続き(2枚目)'!$R$156,'続き(2枚目)'!$G$13:$J$38)+SUMIF('続き(3枚目)'!$R$13:$R$38,'続き(3枚目)'!$R$156,'続き(3枚目)'!$G$13:$J$38) -> 0
A40: ＊8％対象 | B40: =SUMIF($R$18:$R$33,R11,$G$18:$J$33)+SUMIF('続き(2枚目)'!$R$13:$R$38,'続き(2枚目)'!$R$155,'続き(2枚目)'!$G$13:$J$38)+SUMIF('続き(3枚目)'!$R$13:$R$38,'続き(3枚目)'!$R$155,'続き(3枚目)'!$G$13:$J$38) -> 0 | D40: =IF(B40="",0,ROUND(B40*8/100,0)) -> 0 | F40: =+B40+D40 -> 0 | I40: 不課税対象 | K40: =SUMIF($R$18:$R$33,R13,$G$18:$J$33)+SUMIF('続き(2枚目)'!$R$13:$R$38,'続き(2枚目)'!$R$157,'続き(2枚目)'!$G$13:J38)+SUMIF('続き(3枚目)'!$R$13:$R$38,'続き(3枚目)'!$R$157,'続き(3枚目)'!$G$13:J38) -> 0
A42: ＊印は軽減税率(8％)適用商品
A50: （工場・営業部門控） | D50: 請 求 書 | P50: No. | Q50: =$Q$1 -> 1
E51: =$E$2 -> 00:00:00
A52: ＳＫマテリアル株式会社 御中
H53: 〒 | I53: =$I$4 -> 0
A54: 納入場所 | B54: =$B$5 -> 0 | H54: 住所 | I54: =$I$5 -> 0
H55: 社名 | I55: =$I$6 -> 0
A56: =$A$7 -> 0 | B56: =$B$7 -> 00:00:00 | H56: 電話 | I56: =$I$7 -> 0
B57: =$B$8 -> 00:00:00 | H57: 適格請求書 発行事業者登録番号 | J57: =$J$8 -> T | K57: =+K8 -> 0 | L57: - | M57: =+M8 -> 0 | N57: - | O57: =+O8 -> 0 | P57: - | Q57: =+Q8 -> 0 | V57: =$V$61 -> 0
I59: 支 払 日 | M59: 支払条件
A60: 下記のとおり請求いたします。 | M60: 現 金 | Q60: ｻｲﾄ
A61: 金 額 | B61: 円 | I61: 月 | M61: 手 形
B62: =$B$13 -> 0 | E62: =+E13 -> ※ | Q62: 日
K63: 日 | M63: 相 殺 | O63: 有 | Q63: 無
A65: 品 名 | D65: 単位 | E65: 数量 | F65: 単価 | G65: 金 額 | M65: 摘 要
A66: （形状・寸法）
A67: =$A$18 -> 0 | D67: =$D$18 -> 0 | E67: =$E$18 -> 0 | F67: =$F$18 -> 0 | G67: =$G$18 -> 0 | K67: =$K$18 -> 0 | M67: =$M$18 -> 0
A68: =$A$19 -> 0
A69: =$A$20 -> 0 | D69: =$D$20 -> 0 | E69: =$E$20 -> 0 | F69: =$F$20 -> 0 | G69: =$G$20 -> 0 | K69: =$K$20 -> 0 | M69: =$M$20 -> 0
A70: =$A$21 -> 0
A71: =$A$22 -> 0 | D71: =$D$22 -> 0 | E71: =$E$22 -> 0 | F71: =$F$22 -> 0 | G71: =$G$22 -> 0 | K71: =$K$22 -> 0 | M71: =$M$22 -> 0
A72: =$A$23 -> 0
A73: =$A$24 -> 0 | D73: =$D$24 -> 0 | E73: =$E$24 -> 0 | F73: =$F$24 -> 0 | G73: =$G$24 -> 0 | K73: =$K$24 -> 0 | M73: =$M$24 -> 0
A74: =$A$25 -> 0
A75: =$A$26 -> 0 | D75: =$D$26 -> 0 | E75: =$E$26 -> 0 | F75: =$F$26 -> 0 | G75: =$G$26 -> 0 | K75: =$K$26 -> 0 | M75: =$M$26 -> 0
A76: =$A$27 -> 0
A77: =$A$28 -> 0 | D77: =$D$28 -> 0 | E77: =$E$28 -> 0 | F77: =$F$28 -> 0 | G77: =$G$28 -> 0 | K77: =$K$28 -> 0 | M77: =$M$28 -> 0
A78: =$A$29 -> 0
A79: =$A$30 -> 0 | D79: =$D$30 -> 0 | E79: =$E$30 -> 0 | F79: =$F$30 -> 0 | G79: =$G$30 -> 0 | K79: =$K$30 -> 0 | M79: =$M$30 -> 0
A80: =$A$31 -> 0
A81: =$A$32 -> 0 | D81: =$D$32 -> 0 | E81: =$E$32 -> 0 | F81: =$F$32 -> 0 | G81: =$G$32 -> 0 | K81: =$K$32 -> 0 | M81: =$M$32 -> 0
A82: =$A$33 -> 0
A83: =$A$34 -> 品代計 | G83: =$G$34 -> 
A84: =$A$35 -> 消費税相当額 | G84: =$G$35 -> 
A85: =$A$36 -> 合 計 | D85: =$E$36 -> 0 | G85: =$G$36 -> 
B87: 本体 | D87: =+D38 -> 消費税相当額 | F87: =+F38 -> 合計 | K87: 本体
A88: 10％対象 | B88: =$B$39 -> 0 | D88: =$D$39 -> 0 | F88: =$F$39 -> 0 | I88: 非課税対象 | K88: =+K39 -> 0
A89: ＊8％対象 | B89: =+B40 -> 0 | D89: =+D40 -> 0 | F89: =+F40 -> 0 | I89: 不課税対象 | K89: =+K40 -> 0
A90: ＊印は軽減税率(8％)適用商品
A92: 経 理 部 | D92: 担当部 | G92: 部 ・ 事業部 | N92: 工 場
N95: 工事稟議No
A98: （経理部控） | D98: 請 求 書 | P98: No. | Q98: =$Q$1 -> 1
E99: =$E$2 -> 00:00:00
A100: ＳＫマテリアル株式会社 御中
H101: 〒 | I101: =$I$4 -> 0
A102: 納入場所 | B102: =$B$5 -> 0 | H102: 住所 | I102: =$I$5 -> 0
H103: 社名 | I103: =$I$6 -> 0 | Q103: 印
A104: =$A$7 -> 0 | B104: =$B$7 -> 00:00:00 | H104: 電話 | I104: =$I$7 -> 0
B105: =$B$8 -> 00:00:00 | H105: 適格請求書 発行事業者登録番号 | J105: =$J$8 -> T | K105: =+K57 -> 0 | L105: - | M105: =+M57 -> 0 | N105: - | O105: =+O57 -> 0 | P105: - | Q105: =+Q57 -> 0
I107: 支 払 日 | M107: 支払条件
A108: 下記のとおり請求いたします。 | M108: 現 金 | Q108: ｻｲﾄ
A109: 金 額 | B109: 円 | I109: 月 | M109: 手 形
B110: =$B$13 -> 0 | E110: =+E62 -> ※ | Q110: 日
K111: 日 | M111: 相 殺 | O111: 有 | Q111: 無
A113: 品 名 | D113: 単位 | E113: 数量 | F113: 単価 | G113: 金 額 | M113: 摘 要
A114: （形状・寸法）
A115: =$A$18 -> 0 | D115: =$D$18 -> 0 | E115: =$E$18 -> 0 | F115: =$F$18 -> 0 | G115: =$G$18 -> 0 | K115: =$K$18 -> 0 | M115: =$M$18 -> 0
A116: =$A$19 -> 0
A117: =$A$20 -> 0 | D117: =$D$20 -> 0 | E117: =$E$20 -> 0 | F117: =$F$20 -> 0 | G117: =$G$20 -> 0 | K117: =$K$20 -> 0 | M117: =$M$20 -> 0
A118: =$A$21 -> 0
A119: =$A$22 -> 0 | D119: =$D$22 -> 0 | E119: =$E$22 -> 0 | F119: =$F$22 -> 0 | G119: =$G$22 -> 0 | K119: =$K$22 -> 0 | M119: =$M$22 -> 0
A120: =$A$23 -> 0
A121: =$A$24 -> 0 | D121: =$D$24 -> 0 | E121: =$E$24 -> 0 | F121: =$F$24 -> 0 | G121: =$G$24 -> 0 | K121: =$K$24 -> 0 | M121: =$M$24 -> 0
A122: =$A$25 -> 0
A123: =$A$26 -> 0 | D123: =$D$26 -> 0 | E123: =$E$26 -> 0 | F123: =$F$26 -> 0 | G123: =$G$26 -> 0 | K123: =$K$26 -> 0 | M123: =$M$26 -> 0
A124: =$A$27 -> 0
A125: =$A$28 -> 0 | D125: =$D$28 -> 0 | E125: =$E$28 -> 0 | F125: =$F$28 -> 0 | G125: =$G$28 -> 0 | K125: =$K$28 -> 0 | M125: =$M$28 -> 0
A126: =$A$29 -> 0
A127: =$A$30 -> 0 | D127: =$D$30 -> 0 | E127: =$E$30 -> 0 | F127: =$F$30 -> 0 | G127: =$G$30 -> 0 | K127: =$K$30 -> 0 | M127: =$M$30 -> 0
A128: =$A$31 -> 0
A129: =$A$32 -> 0 | D129: =$D$32 -> 0 | E129: =$E$32 -> 0 | F129: =$F$32 -> 0 | G129: =$G$32 -> 0 | K129: =$K$32 -> 0 | M129: =$M$32 -> 0
A130: =$A$33 -> 0
A131: =$A$34 -> 品代計 | G131: =$G$34 -> 
A132: =$A$35 -> 消費税相当額 | G132: =$G$35 -> 
A133: =$A$36 -> 合 計 | D133: =$E$36 -> 0 | G133: =$G$36 -> 
B135: 本体 | D135: =+D87 -> 消費税相当額 | F135: =+F87 -> 合計 | K135: 本体
A136: 10％対象 | B136: =$B$39 -> 0 | D136: =$D$39 -> 0 | F136: =$F$39 -> 0 | I136: 非課税対象 | K136: =+K39 -> 0
A137: ＊8％対象 | B137: =+B40 -> 0 | D137: =+D40 -> 0 | F137: =+F40 -> 0 | I137: 不課税対象 | K137: =+K40 -> 0
A138: ＊印は軽減税率(8％)適用商品
A140: 経 理 部 | D140: 担当部 | G140: 部 ・ 事業部 | N140: 工 場
N143: 工事稟議No

Sheet 続き(2枚目)
A1: （請求元保管） | D1: 請 求 書 （控) | P1: No. | Q1: 2
E2: =+請求書1枚目!E2 -> 00:00:00
A3: ＳＫマテリアル株式会社 御中
H4: 〒 | I4: =+請求書1枚目!I4 -> 0
A5: 納入場所 | B5: =+請求書1枚目!B5 -> 0 | H5: 住所 | I5: =+請求書1枚目!I5 -> 0
H6: 社名 | I6: =+請求書1枚目!I6 -> 0
A7: =+請求書1枚目!A7 -> 0 | B7: =+請求書1枚目!B7 -> 00:00:00 | H7: 電話 | I7: =+請求書1枚目!I7 -> 0
B8: =+請求書1枚目!B8 -> 00:00:00 | H8: 適格請求書 発行事業者登録番号 | J8: T | K8: =+請求書1枚目!K8 -> 0 | L8: - | M8: =+請求書1枚目!M8 -> 0 | N8: - | O8: =+請求書1枚目!O8 -> 0 | P8: - | Q8: =+請求書1枚目!Q8 -> 0
A11: 品 名 | D11: 単位 | E11: 数量 | F11: 単価 | G11: 金 額 | M11: 摘 要 | R11: 消費税区分
A12: （形状・寸法） | R12: 選択 | S12: 税率 | T12: 消費税額
G13: =ROUND(E13*F13,0) -> 0 | K13: =+IF(R13="8%（軽減税率対象）","＊", ) -> 0 | S13: =IF(R13="8%（軽減税率対象）",8%,R13) -> 0 | T13: =IF(OR(R13="非課税",S13="不課税"),G13*0,G13*S13) -> 0
G15: =ROUND(E15*F15,0) -> 0 | K15: =+IF(R15="8%（軽減税率対象）","＊", ) -> 0 | S15: =IF(R15="8%（軽減税率対象）",8%,R15) -> 0 | T15: =IF(OR(R15="非課税",S15="不課税"),G15*0,G15*S15) -> 0
G17: =ROUND(E17*F17,0) -> 0 | K17: =+IF(R17="8%（軽減税率対象）","＊", ) -> 0 | S17: =IF(R17="8%（軽減税率対象）",8%,R17) -> 0 | T17: =IF(OR(R17="非課税",S17="不課税"),G17*0,G17*S17) -> 0
G19: =ROUND(E19*F19,0) -> 0 | K19: =+IF(R19="8%（軽減税率対象）","＊", ) -> 0 | S19: =IF(R19="8%（軽減税率対象）",8%,R19) -> 0 | T19: =IF(OR(R19="非課税",S19="不課税"),G19*0,G19*S19) -> 0
G21: =ROUND(E21*F21,0) -> 0 | K21: =+IF(R21="8%（軽減税率対象）","＊", ) -> 0 | S21: =IF(R21="8%（軽減税率対象）",8%,R21) -> 0 | T21: =IF(OR(R21="非課税",S21="不課税"),G21*0,G21*S21) -> 0
G23: =ROUND(E23*F23,0) -> 0 | K23: =+IF(R23="8%（軽減税率対象）","＊", ) -> 0 | S23: =IF(R23="8%（軽減税率対象）",8%,R23) -> 0 | T23: =IF(OR(R23="非課税",S23="不課税"),G23*0,G23*S23) -> 0
G25: =ROUND(E25*F25,0) -> 0 | K25: =+IF(R25="8%（軽減税率対象）","＊", ) -> 0 | S25: =IF(R25="8%（軽減税率対象）",8%,R25) -> 0 | T25: =IF(OR(R25="非課税",S25="不課税"),G25*0,G25*S25) -> 0
G27: =ROUND(E27*F27,0) -> 0 | K27: =+IF(R27="8%（軽減税率対象）","＊", ) -> 0 | S27: =IF(R27="8%（軽減税率対象）",8%,R27) -> 0 | T27: =IF(OR(R27="非課税",S27="不課税"),G27*0,G27*S27) -> 0
G29: =ROUND(E29*F29,0) -> 0 | K29: =+IF(R29="8%（軽減税率対象）","＊", ) -> 0 | S29: =IF(R29="8%（軽減税率対象）",8%,R29) -> 0 | T29: =IF(OR(R29="非課税",S29="不課税"),G29*0,G29*S29) -> 0
G31: =ROUND(E31*F31,0) -> 0 | K31: =+IF(R31="8%（軽減税率対象）","＊", ) -> 0 | S31: =IF(R31="8%（軽減税率対象）",8%,R31) -> 0 | T31: =IF(OR(R31="非課税",S31="不課税"),G31*0,G31*S31) -> 0
G33: =ROUND(E33*F33,0) -> 0 | K33: =+IF(R33="8%（軽減税率対象）","＊", ) -> 0 | S33: =IF(R33="8%（軽減税率対象）",8%,R33) -> 0 | T33: =IF(OR(R33="非課税",S33="不課税"),G33*0,G33*S33) -> 0
G35: =ROUND(E35*F35,0) -> 0 | K35: =+IF(R35="8%（軽減税率対象）","＊", ) -> 0 | S35: =IF(R35="8%（軽減税率対象）",8%,R35) -> 0 | T35: =IF(OR(R35="非課税",S35="不課税"),G35*0,G35*S35) -> 0
G37: =ROUND(E37*F37,0) -> 0 | K37: =+IF(R37="8%（軽減税率対象）","＊", ) -> 0 | S37: =IF(R37="8%（軽減税率対象）",8%,R37) -> 0 | T37: =IF(OR(R37="非課税",S37="不課税"),G37*0,G37*S37) -> 0
A39: 品代計 | G39: =IF(SUM(G13:J38)=0,"",IF(SUM('続き(3枚目)'!G13:J38)=0,SUM(請求書1枚目!G18:J33)+SUM('続き(2枚目)'!G13:J38),"")) ->  | T39: =SUM(T13:T38) -> 0
A40: =+請求書1枚目!A35 -> 消費税相当額 | G40: =IF(G39="","",請求書1枚目!D39+請求書1枚目!D40) -> 
A41: 合 計 | G41: =IF(G39="","",G39+G40) -> 
A50: （工場・営業部門控） | D50: 請 求 書 | P50: No. | Q50: =$Q$1 -> 2
E51: =$E$2 -> 00:00:00
A52: ＳＫマテリアル株式会社 御中
H53: 〒 | I53: =$I$4 -> 0
A54: 納入場所 | B54: =$B$5 -> 0 | H54: 住所 | I54: =$I$5 -> 0
H55: 社名 | I55: =$I$6 -> 0
A56: =$A$7 -> 0 | B56: =$B$7 -> 00:00:00 | H56: 電話 | I56: =$I$7 -> 0
B57: =$B$8 -> 00:00:00 | H57: 適格請求書 発行事業者登録番号 | J57: =$J$8 -> T | K57: =+K8 -> 0 | L57: - | M57: =+M8 -> 0 | N57: - | O57: =+O8 -> 0 | P57: - | Q57: =+Q8 -> 0
A60: 品 名 | D60: 単位 | E60: 数量 | F60: 単価 | G60: 金 額 | M60: 摘 要
A61: （形状・寸法）
A62: =+$A$13 -> 0 | D62: =+D13 -> 0 | E62: =$E$13 -> 0 | F62: =$F$13 -> 0 | G62: =+G13 -> 0 | K62: =+K13 -> 0 | M62: =+M13 -> 0
A63: =+A14 -> 0
A64: 0 | D64: =+D15 -> 0 | E64: =+E15 -> 0 | F64: =+F15 -> 0 | G64: =+G15 -> 0 | K64: =+K15 -> 0 | M64: =+M15 -> 0
A65: 0
A66: 0 | D66: =+D17 -> 0 | E66: =+E17 -> 0 | F66: =+F17 -> 0 | G66: =+G17 -> 0 | K66: =+K17 -> 0 | M66: =+M17 -> 0
A67: 0
A68: 0 | D68: =+D19 -> 0 | E68: =+E19 -> 0 | F68: =+F19 -> 0 | G68: =+G19 -> 0 | K68: =+K19 -> 0 | M68: =+M19 -> 0
A69: 0
A70: 0 | D70: =+D21 -> 0 | E70: =+E21 -> 0 | F70: =+F21 -> 0 | G70: =+G21 -> 0 | K70: =+K21 -> 0 | M70: =+M21 -> 0
A71: 0
A72: 0 | D72: =+D23 -> 0 | E72: =+E23 -> 0 | F72: =+F23 -> 0 | G72: =+G23 -> 0 | K72: =+K23 -> 0 | M72: =+M23 -> 0
A73: 0
A74: 0 | D74: =+D25 -> 0 | E74: =+E25 -> 0 | F74: =+F25 -> 0 | G74: =+G25 -> 0 | K74: =+K25 -> 0 | M74: =+M25 -> 0
A75: 0
A76: 0 | D76: =+D27 -> 0 | E76: =+E27 -> 0 | F76: =+F27 -> 0 | G76: =+G27 -> 0 | K76: =+K27 -> 0 | M76: =+M27 -> 0
A77: 0
A78: 0 | D78: =+D29 -> 0 | E78: =+E29 -> 0 | F78: =+F29 -> 0 | G78: =+G29 -> 0 | K78: =+K29 -> 0 | M78: =+M29 -> 0
A79: 0
A80: 0 | D80: =+D31 -> 0 | E80: =+E31 -> 0 | F80: =+F31 -> 0 | G80: =+G31 -> 0 | K80: =+K31 -> 0 | M80: =+M31 -> 0
A81: 0
A82: 0 | D82: =+D33 -> 0 | E82: =+E33 -> 0 | F82: =+F33 -> 0 | G82: =+G33 -> 0 | K82: =+K33 -> 0 | M82: =+M33 -> 0
A83: 0
A84: 0 | D84: =+D35 -> 0 | E84: =+E35 -> 0 | F84: =+F35 -> 0 | G84: =+G35 -> 0 | K84: =+K35 -> 0 | M84: =+M35 -> 0
A85: 0
A86: 0 | D86: =$D$37 -> 0 | E86: =+E37 -> 0 | F86: =+F37 -> 0 | G86: =+G37 -> 0 | K86: =+K37 -> 0 | M86: =+M37 -> 0
A87: 0
A88: =$A$39 -> 品代計 | G88: =+G39 -> 
A89: =$A$40 -> 消費税相当額 | G89: =+G40 -> 
A90: =$A$41 -> 合 計 | D90: =$E$41 -> 0 | G90: =+G41 -> 
A93: 経 理 部 | D93: 担当部 | G93: 部 ・ 事業部 | N93: 工 場
N96: 工事稟議No
A99: （経理部控） | D99: 請 求 書 | P99: No. | Q99: =$Q$1 -> 2
E100: =$E$2 -> 00:00:00
A101: ＳＫマテリアル株式会社 御中
H102: 〒 | I102: =$I$4 -> 0
A103: 納入場所 | B103: =$B$5 -> 0 | H103: 住所 | I103: =$I$5 -> 0
H104: 社名 | I104: =$I$6 -> 0
A105: =$A$7 -> 0 | B105: =$B$7 -> 00:00:00 | H105: 電話 | I105: =$I$7 -> 0
B106: =$B$8 -> 00:00:00 | H106: 適格請求書 発行事業者登録番号 | J106: =$J$8 -> T | K106: =+K57 -> 0 | L106: - | M106: =+M57 -> 0 | N106: - | O106: =+O57 -> 0 | P106: - | Q106: =+Q57 -> 0
A109: 品 名 | D109: 単位 | E109: 数量 | F109: 単価 | G109: 金 額 | M109: 摘 要
A110: （形状・寸法）
A111: =+A13 -> 0 | D111: =+D13 -> 0 | E111: =$E$13 -> 0 | F111: =$F$13 -> 0 | G111: =+G13 -> 0 | K111: =+K13 -> 0 | M111: =+M13 -> 0
A112: 0
A113: 0 | D113: =+D15 -> 0 | E113: =+E64 -> 0 | F113: =+F64 -> 0 | G113: =+G15 -> 0 | K113: =+K15 -> 0 | M113: =+M15 -> 0
A114: 0
A115: 0 | D115: =+D17 -> 0 | E115: =+E66 -> 0 | F115: =+F66 -> 0 | G115: =+G17 -> 0 | K115: =+K17 -> 0 | M115: =+M17 -> 0
A116: 0
A117: 0 | D117: =+D19 -> 0 | E117: =+E68 -> 0 | F117: =+F68 -> 0 | G117: =+G19 -> 0 | K117: =+K19 -> 0 | M117: =+M19 -> 0
A118: 0
A119: 0 | D119: =+D21 -> 0 | E119: =+E70 -> 0 | F119: =+F70 -> 0 | G119: =+G21 -> 0 | K119: =+K21 -> 0 | M119: =+M21 -> 0
A120: 0
A121: 0 | D121: =+D23 -> 0 | E121: =+E72 -> 0 | F121: =+F72 -> 0 | G121: =+G23 -> 0 | K121: =+K23 -> 0 | M121: =+M23 -> 0
A122: 0
A123: 0 | D123: =+D25 -> 0 | E123: =+E74 -> 0 | F123: =+F74 -> 0 | G123: =+G25 -> 0 | K123: =+K25 -> 0 | M123: =+M25 -> 0
A124: 0
A125: 0 | D125: =+D27 -> 0 | E125: =+E76 -> 0 | F125: =+F76 -> 0 | G125: =+G27 -> 0 | K125: =+K27 -> 0 | M125: =+M27 -> 0
A126: 0
A127: 0 | D127: =+D29 -> 0 | E127: =+E78 -> 0 | F127: =+F78 -> 0 | G127: =+G29 -> 0 | K127: =+K29 -> 0 | M127: =+M29 -> 0
A128: 0
A129: 0 | D129: =+D31 -> 0 | E129: =+E80 -> 0 | F129: =+F80 -> 0 | G129: =+G31 -> 0 | K129: =+K31 -> 0 | M129: =+M31 -> 0
A130: 0
A131: 0 | D131: =+D33 -> 0 | E131: =+E82 -> 0 | F131: =+F82 -> 0 | G131: =+G33 -> 0 | K131: =+K33 -> 0 | M131: =+M33 -> 0
A132: 0
A133: 0 | D133: =+D35 -> 0 | E133: =+E84 -> 0 | F133: =+F84 -> 0 | G133: =+G35 -> 0 | K133: =+K35 -> 0 | M133: =+M35 -> 0
A134: 0
A135: 0 | D135: =+D37 -> 0 | E135: =+E86 -> 0 | F135: =+F86 -> 0 | G135: =+G37 -> 0 | K135: =+K37 -> 0 | M135: =+M37 -> 0
A136: 0
A137: =$A$39 -> 品代計 | G137: =+G39 -> 
A138: =$A$40 -> 消費税相当額 | G138: =+G40 -> 
A139: =$A$41 -> 合 計 | D139: =$E$41 -> 0 | G139: =+G41 -> 
A141: 経 理 部 | D141: 担当部 | G141: 部 ・ 事業部 | N141: 工 場
N144: 工事稟議No
R154: 0.1
R155: 8%（軽減税率対象）
R156: 非課税
R157: 不課税

Sheet 続き(3枚目)
A1: （請求元保管） | D1: 請 求 書 （控) | P1: No. | Q1: 3
E2: =+請求書1枚目!E2 -> 00:00:00
A3: ＳＫマテリアル株式会社 御中
H4: 〒 | I4: =+請求書1枚目!I4 -> 0
A5: 納入場所 | B5: =+請求書1枚目!B5 -> 0 | H5: 住所 | I5: =+請求書1枚目!I5 -> 0
H6: 社名 | I6: =+請求書1枚目!I6 -> 0
A7: =+請求書1枚目!A7 -> 0 | B7: =+請求書1枚目!B7 -> 00:00:00 | H7: 電話 | I7: =+請求書1枚目!I7 -> 0
B8: =+請求書1枚目!B8 -> 00:00:00 | H8: 適格請求書 発行事業者登録番号 | J8: T | K8: =+請求書1枚目!K8 -> 0 | L8: - | M8: =+請求書1枚目!M8 -> 0 | N8: - | O8: =+請求書1枚目!O8 -> 0 | P8: - | Q8: =+請求書1枚目!Q8 -> 0
A11: 品 名 | D11: 単位 | E11: 数量 | F11: 単価 | G11: 金 額 | M11: 摘 要 | R11: 消費税区分
A12: （形状・寸法） | R12: 選択 | S12: 税率 | T12: 消費税額
G13: =ROUND(E13*F13,0) -> 0 | K13: =+IF(R13="8%（軽減税率対象）","＊", ) -> 0 | S13: =IF(R13="8%（軽減税率対象）",8%,R13) -> 0 | T13: =IF(OR(R13="非課税",S13="不課税"),G13*0,G13*S13) -> 0
G15: =ROUND(E15*F15,0) -> 0 | K15: =+IF(R15="8%（軽減税率対象）","＊", ) -> 0 | S15: =IF(R15="8%（軽減税率対象）",8%,R15) -> 0 | T15: =IF(OR(R15="非課税",S15="不課税"),G15*0,G15*S15) -> 0
G17: =ROUND(E17*F17,0) -> 0 | K17: =+IF(R17="8%（軽減税率対象）","＊", ) -> 0 | S17: =IF(R17="8%（軽減税率対象）",8%,R17) -> 0 | T17: =IF(OR(R17="非課税",S17="不課税"),G17*0,G17*S17) -> 0
G19: =ROUND(E19*F19,0) -> 0 | K19: =+IF(R19="8%（軽減税率対象）","＊", ) -> 0 | S19: =IF(R19="8%（軽減税率対象）",8%,R19) -> 0 | T19: =IF(OR(R19="非課税",S19="不課税"),G19*0,G19*S19) -> 0
G21: =ROUND(E21*F21,0) -> 0 | K21: =+IF(R21="8%（軽減税率対象）","＊", ) -> 0 | S21: =IF(R21="8%（軽減税率対象）",8%,R21) -> 0 | T21: =IF(OR(R21="非課税",S21="不課税"),G21*0,G21*S21) -> 0
G23: =ROUND(E23*F23,0) -> 0 | K23: =+IF(R23="8%（軽減税率対象）","＊", ) -> 0 | S23: =IF(R23="8%（軽減税率対象）",8%,R23) -> 0 | T23: =IF(OR(R23="非課税",S23="不課税"),G23*0,G23*S23) -> 0
G25: =ROUND(E25*F25,0) -> 0 | K25: =+IF(R25="8%（軽減税率対象）","＊", ) -> 0 | S25: =IF(R25="8%（軽減税率対象）",8%,R25) -> 0 | T25: =IF(OR(R25="非課税",S25="不課税"),G25*0,G25*S25) -> 0
G27: =ROUND(E27*F27,0) -> 0 | K27: =+IF(R27="8%（軽減税率対象）","＊", ) -> 0 | S27: =IF(R27="8%（軽減税率対象）",8%,R27) -> 0 | T27: =IF(OR(R27="非課税",S27="不課税"),G27*0,G27*S27) -> 0
G29: =ROUND(E29*F29,0) -> 0 | K29: =+IF(R29="8%（軽減税率対象）","＊", ) -> 0 | S29: =IF(R29="8%（軽減税率対象）",8%,R29) -> 0 | T29: =IF(OR(R29="非課税",S29="不課税"),G29*0,G29*S29) -> 0
G31: =ROUND(E31*F31,0) -> 0 | K31: =+IF(R31="8%（軽減税率対象）","＊", ) -> 0 | S31: =IF(R31="8%（軽減税率対象）",8%,R31) -> 0 | T31: =IF(OR(R31="非課税",S31="不課税"),G31*0,G31*S31) -> 0
G33: =ROUND(E33*F33,0) -> 0 | K33: =+IF(R33="8%（軽減税率対象）","＊", ) -> 0 | S33: =IF(R33="8%（軽減税率対象）",8%,R33) -> 0 | T33: =IF(OR(R33="非課税",S33="不課税"),G33*0,G33*S33) -> 0
G35: =ROUND(E35*F35,0) -> 0 | K35: =+IF(R35="8%（軽減税率対象）","＊", ) -> 0 | S35: =IF(R35="8%（軽減税率対象）",8%,R35) -> 0 | T35: =IF(OR(R35="非課税",S35="不課税"),G35*0,G35*S35) -> 0
G37: =ROUND(E37*F37,0) -> 0 | K37: =+IF(R37="8%（軽減税率対象）","＊", ) -> 0 | S37: =IF(R37="8%（軽減税率対象）",8%,R37) -> 0 | T37: =IF(OR(R37="非課税",S37="不課税"),G37*0,G37*S37) -> 0
A39: 品代計 | G39: =IF(SUM(G13:J38)=0,"",SUM(請求書1枚目!G18:J33)+SUM('続き(2枚目)'!G13:J38)+SUM('続き(3枚目)'!G13:J38)) ->  | T39: =SUM(T13:T38) -> 0
A40: =+請求書1枚目!A35 -> 消費税相当額 | G40: =IF(G39="","",請求書1枚目!D39+請求書1枚目!D40) -> 
A41: 合 計 | G41: =IF(G39="","",G39+G40) -> 
A50: （工場・営業部門控） | D50: 請 求 書 | P50: No. | Q50: =$Q$1 -> 3
E51: =$E$2 -> 00:00:00
A52: ＳＫマテリアル株式会社 御中
H53: 〒 | I53: =$I$4 -> 0
A54: 納入場所 | B54: =$B$5 -> 0 | H54: 住所 | I54: =$I$5 -> 0
H55: 社名 | I55: =$I$6 -> 0
A56: =$A$7 -> 0 | B56: =$B$7 -> 00:00:00 | H56: 電話 | I56: =$I$7 -> 0
B57: =$B$8 -> 00:00:00 | H57: 適格請求書 発行事業者登録番号 | J57: =$J$8 -> T | K57: =+K8 -> 0 | L57: - | M57: =+M8 -> 0 | N57: - | O57: =+O8 -> 0 | P57: - | Q57: =+Q8 -> 0
A60: 品 名 | D60: 単位 | E60: 数量 | F60: 単価 | G60: 金 額 | M60: 摘 要
A61: （形状・寸法）
A62: =+$A$13 -> 0 | D62: =+D13 -> 0 | E62: =$E$13 -> 0 | F62: =$F$13 -> 0 | G62: =+G13 -> 0 | K62: =+K13 -> 0 | M62: =+M13 -> 0
A63: =+A14 -> 0
A64: 0 | D64: =+D15 -> 0 | E64: =+E15 -> 0 | F64: =+F15 -> 0 | G64: =+G15 -> 0 | K64: =+K15 -> 0 | M64: =+M15 -> 0
A65: 0
A66: 0 | D66: =+D17 -> 0 | E66: =+E17 -> 0 | F66: =+F17 -> 0 | G66: =+G17 -> 0 | K66: =+K17 -> 0 | M66: =+M17 -> 0
A67: 0
A68: 0 | D68: =+D19 -> 0 | E68: =+E19 -> 0 | F68: =+F19 -> 0 | G68: =+G19 -> 0 | K68: =+K19 -> 0 | M68: =+M19 -> 0
A69: 0
A70: 0 | D70: =+D21 -> 0 | E70: =+E21 -> 0 | F70: =+F21 -> 0 | G70: =+G21 -> 0 | K70: =+K21 -> 0 | M70: =+M21 -> 0
A71: 0
A72: 0 | D72: =+D23 -> 0 | E72: =+E23 -> 0 | F72: =+F23 -> 0 | G72: =+G23 -> 0 | K72: =+K23 -> 0 | M72: =+M23 -> 0
A73: 0
A74: 0 | D74: =+D25 -> 0 | E74: =+E25 -> 0 | F74: =+F25 -> 0 | G74: =+G25 -> 0 | K74: =+K25 -> 0 | M74: =+M25 -> 0
A75: 0
A76: 0 | D76: =+D27 -> 0 | E76: =+E27 -> 0 | F76: =+F27 -> 0 | G76: =+G27 -> 0 | K76: =+K27 -> 0 | M76: =+M27 -> 0
A77: 0
A78: 0 | D78: =+D29 -> 0 | E78: =+E29 -> 0 | F78: =+F29 -> 0 | G78: =+G29 -> 0 | K78: =+K29 -> 0 | M78: =+M29 -> 0
A79: 0
A80: 0 | D80: =+D31 -> 0 | E80: =+E31 -> 0 | F80: =+F31 -> 0 | G80: =+G31 -> 0 | K80: =+K31 -> 0 | M80: =+M31 -> 0
A81: 0
A82: 0 | D82: =+D33 -> 0 | E82: =+E33 -> 0 | F82: =+F33 -> 0 | G82: =+G33 -> 0 | K82: =+K33 -> 0 | M82: =+M33 -> 0
A83: 0
A84: 0 | D84: =+D35 -> 0 | E84: =+E35 -> 0 | F84: =+F35 -> 0 | G84: =+G35 -> 0 | K84: =+K35 -> 0 | M84: =+M35 -> 0
A85: 0
A86: 0 | D86: =$D$37 -> 0 | E86: =+E37 -> 0 | F86: =+F37 -> 0 | G86: =+G37 -> 0 | K86: =+K37 -> 0 | M86: =+M37 -> 0
A87: 0
A88: =$A$39 -> 品代計 | G88: =+G39 -> 
A89: =$A$40 -> 消費税相当額 | G89: =+G40 -> 
A90: =$A$41 -> 合 計 | D90: =$E$41 -> 0 | G90: =+G41 -> 
A93: 経 理 部 | D93: 担当部 | G93: 部 ・ 事業部 | N93: 工 場
N96: 工事稟議No
A99: （経理部控） | D99: 請 求 書 | P99: No. | Q99: =$Q$1 -> 3
E100: =$E$2 -> 00:00:00
A101: ＳＫマテリアル株式会社 御中
H102: 〒 | I102: =$I$4 -> 0
A103: 納入場所 | B103: =$B$5 -> 0 | H103: 住所 | I103: =$I$5 -> 0
H104: 社名 | I104: =$I$6 -> 0
A105: =$A$7 -> 0 | B105: =$B$7 -> 00:00:00 | H105: 電話 | I105: =$I$7 -> 0
B106: =$B$8 -> 00:00:00 | H106: 適格請求書 発行事業者登録番号 | J106: =$J$8 -> T | K106: =+K57 -> 0 | L106: - | M106: =+M57 -> 0 | N106: - | O106: =+O57 -> 0 | P106: - | Q106: =+Q57 -> 0
A109: 品 名 | D109: 単位 | E109: 数量 | F109: 単価 | G109: 金 額 | M109: 摘 要
A110: （形状・寸法）
A111: =+A13 -> 0 | D111: =+D13 -> 0 | E111: =$E$13 -> 0 | F111: =$F$13 -> 0 | G111: =+G13 -> 0 | K111: =+K13 -> 0 | M111: =+M13 -> 0
A112: 0
A113: 0 | D113: =+D15 -> 0 | E113: =+E64 -> 0 | F113: =+F64 -> 0 | G113: =+G15 -> 0 | K113: =+K15 -> 0 | M113: =+M15 -> 0
A114: 0
A115: 0 | D115: =+D17 -> 0 | E115: =+E66 -> 0 | F115: =+F66 -> 0 | G115: =+G17 -> 0 | K115: =+K17 -> 0 | M115: =+M17 -> 0
A116: 0
A117: 0 | D117: =+D19 -> 0 | E117: =+E68 -> 0 | F117: =+F68 -> 0 | G117: =+G19 -> 0 | K117: =+K19 -> 0 | M117: =+M19 -> 0
A118: 0
A119: 0 | D119: =+D21 -> 0 | E119: =+E70 -> 0 | F119: =+F70 -> 0 | G119: =+G21 -> 0 | K119: =+K21 -> 0 | M119: =+M21 -> 0
A120: 0
A121: 0 | D121: =+D23 -> 0 | E121: =+E72 -> 0 | F121: =+F72 -> 0 | G121: =+G23 -> 0 | K121: =+K23 -> 0 | M121: =+M23 -> 0
A122: 0
A123: 0 | D123: =+D25 -> 0 | E123: =+E74 -> 0 | F123: =+F74 -> 0 | G123: =+G25 -> 0 | K123: =+K25 -> 0 | M123: =+M25 -> 0
A124: 0
A125: 0 | D125: =+D27 -> 0 | E125: =+E76 -> 0 | F125: =+F76 -> 0 | G125: =+G27 -> 0 | K125: =+K27 -> 0 | M125: =+M27 -> 0
A126: 0
A127: 0 | D127: =+D29 -> 0 | E127: =+E78 -> 0 | F127: =+F78 -> 0 | G127: =+G29 -> 0 | K127: =+K29 -> 0 | M127: =+M29 -> 0
A128: 0
A129: 0 | D129: =+D31 -> 0 | E129: =+E80 -> 0 | F129: =+F80 -> 0 | G129: =+G31 -> 0 | K129: =+K31 -> 0 | M129: =+M31 -> 0
A130: 0
A131: 0 | D131: =+D33 -> 0 | E131: =+E82 -> 0 | F131: =+F82 -> 0 | G131: =+G33 -> 0 | K131: =+K33 -> 0 | M131: =+M33 -> 0
A132: 0
A133: 0 | D133: =+D35 -> 0 | E133: =+E84 -> 0 | F133: =+F84 -> 0 | G133: =+G35 -> 0 | K133: =+K35 -> 0 | M133: =+M35 -> 0
A134: 0
A135: 0 | D135: =+D37 -> 0 | E135: =+E86 -> 0 | F135: =+F86 -> 0 | G135: =+G37 -> 0 | K135: =+K37 -> 0 | M135: =+M37 -> 0
A136: 0
A137: =$A$39 -> 品代計 | G137: =+G39 -> 
A138: =$A$40 -> 消費税相当額 | G138: =+G40 -> 
A139: =$A$41 -> 合 計 | D139: =$E$41 -> 0 | G139: =+G41 -> 
A141: 経 理 部 | D141: 担当部 | G141: 部 ・ 事業部 | N141: 工 場
N144: 工事稟議No
R154: 0.1
R155: 8%（軽減税率対象）
R156: 非課税
R157: 不課税

Sheet 説明シート
A1: （請求元保管） | D1: 請 求 書 （控) | P1: No. | Q1: 1
E2: 2023-10-31
A3: ＳＫマテリアル株式会社 御中
H4: 〒 | I4: 350-1305
A5: 納入場所 | B5: 狭山市○○現場 | H5: 住所 | I5: 埼玉県狭山市入間川〇丁目〇番〇号
H6: 社名 | I6: 〇〇建材株式会社
A7: 10 | B7: 2023-10-01 | H7: 電話 | I7: 04-1111-11111
B8: 2023-10-31 | H8: 適格請求書 発行事業者登録番号 | J8: T | K8: 4 | L8: - | M8: 1234 | N8: - | O8: 5678 | P8: - | Q8: 9123
R10: 0.1
A11: 下記のとおり請求いたします。 | R11: 8%（軽減税率対象）
A12: 金 額 | B12: 円 | E12: =IF(E13="","","適格請求書発行事業者の方は登録番号の入力をお願いいたします。") ->  | R12: 非課税
B13: =+G36 -> 285415 | E13: =IF(K8="","※消費税 免税事業者","") ->  | R13: 不課税
A16: 品 名 | D16: 単位 | E16: 数量 | F16: 単価 | G16: 金 額 | M16: 摘 要 | R16: 消費税区分
A17: （形状・寸法） | R17: 選択 | S17: 税率 | T17: 消費税額
A18: 砕石2005 | D18: t | E18: 120 | F18: 2000 | G18: =ROUND(E18*F18,0) -> 240000 | K18: =+IF(R18="8%（軽減税率対象）","＊", ) -> 0 | R18: 0.1 | S18: =IF(R18="8%（軽減税率対象）",8%,R18) -> 0.1 | T18: =IF(OR(R18="非課税",S18="不課税"),G18*0,G18*S18) -> 24000
A19: 1212
A20: 軽油 | D20: ℓ | E20: 59.5 | F20: 100 | G20: =ROUND(E20*F20,0) -> 5950 | K20: =+IF(R20="8%（軽減税率対象）","＊", ) -> 0 | R20: 0.1 | S20: =IF(R20="8%（軽減税率対象）",8%,R20) -> 0.1 | T20: =IF(OR(R20="非課税",S20="不課税"),G20*0,G20*S20) -> 595
A22: 軽油引取税 | D22: ℓ | E22: 59.5 | F22: 32.1 | G22: =ROUND(E22*F22,0) -> 1910 | K22: =+IF(R22="8%（軽減税率対象）","＊", ) -> 0 | R22: 不課税 | S22: =IF(R22="8%（軽減税率対象）",8%,R22) -> 不課税 | T22: =IF(OR(R22="非課税",S22="不課税"),G22*0,G22*S22) -> 0
A24: 購読料 | D24: 月 | E24: 12 | F24: 1000 | G24: =ROUND(E24*F24,0) -> 12000 | K24: =+IF(R24="8%（軽減税率対象）","＊", ) -> ＊ | R24: 8%（軽減税率対象） | S24: =IF(R24="8%（軽減税率対象）",8%,R24) -> 0.08 | T24: =IF(OR(R24="非課税",S24="不課税"),G24*0,G24*S24) -> 960
A25: 2023.10-2024.9
G26: =ROUND(E26*F26,0) -> 0 | K26: =+IF(R26="8%（軽減税率対象）","＊", ) -> 0 | S26: =IF(R26="8%（軽減税率対象）",8%,R26) -> 0 | T26: =IF(OR(R26="非課税",S26="不課税"),G26*0,G26*S26) -> 0
K28: =+IF(R28="8%（軽減税率対象）","＊", ) -> 0 | S28: =IF(R28="8%（軽減税率対象）",8%,R28) -> 0 | T28: =IF(OR(R28="非課税",S28="不課税"),G28*0,G28*S28) -> 0
K30: =+IF(R30="8%（軽減税率対象）","＊", ) -> 0 | S30: =IF(R30="8%（軽減税率対象）",8%,R30) -> 0 | T30: =IF(OR(R30="非課税",S30="不課税"),G30*0,G30*S30) -> 0
G32: =ROUND(E32*F32,0) -> 0 | K32: =+IF(R32="8%（軽減税率対象）","＊", ) -> 0 | S32: =IF(R32="8%（軽減税率対象）",8%,R32) -> 0 | T32: =IF(OR(R32="非課税",S32="不課税"),G32*0,G32*S32) -> 0
A34: 品代計 | G34: =SUM(G18:J33) -> 259860 | T34: =SUM(T18:T33) -> 25555
A35: =+D38 -> 消費税 | G35: =SUM(D39:E40) -> 25555
A36: 合 計 | G36: =+G34+G35 -> 285415
B38: 本体 | D38: =IF(K8="","消費税相当額","消費税") -> 消費税 | F38: =IF(K8="","合計","税込") -> 税込 | K38: 本体
A39: 10％対象 | B39: =SUMIF($R$18:$R$33,R10,$G$18:$J$33) -> 245950 | D39: =IF(B39="",0,ROUND(B39*10/100,0)) -> 24595 | F39: =+B39+D39 -> 270545 | I39: 非課税対象 | K39: =SUMIF($R$18:$R$33,R12,$G$18:$J$33) -> 0
A40: ＊8％対象 | B40: =SUMIF($R$18:$R$33,R11,$G$18:$J$33) -> 12000 | D40: =IF(B40="",0,ROUND(B40*8/100,0)) -> 960 | F40: =+B40+D40 -> 12960 | I40: 不課税対象 | K40: =SUMIF($R$18:$R$33,R13,$G$18:$J$33) -> 1910
A42: ＊印は軽減税率(8％)適用商品
A50: （工場・営業部門控） | D50: 請 求 書 | P50: No. | Q50: =$Q$1 -> 1
E51: =$E$2 -> 2023-10-31
A52: ＳＫマテリアル株式会社 御中
H53: 〒 | I53: =$I$4 -> 350-1305
A54: 納入場所 | B54: =$B$5 -> 狭山市○○現場 | H54: 住所 | I54: =$I$5 -> 埼玉県狭山市入間川〇丁目〇番〇号
H55: 社名 | I55: =$I$6 -> 〇〇建材株式会社
A56: =$A$7 -> 10 | B56: =$B$7 -> 2023-10-01 | H56: 電話 | I56: =$I$7 -> 04-1111-11111
B57: =$B$8 -> 2023-10-31 | H57: 適格請求書 発行事業者登録番号 | J57: =$J$8 -> T | K57: =+K8 -> 4 | L57: - | M57: =+M8 -> 1234 | N57: - | O57: =+O8 -> 5678 | P57: - | Q57: =+Q8 -> 9123
I59: 支 払 日 | M59: 支払条件
A60: 下記のとおり請求いたします。 | M60: 現 金 | P60: ％ | Q60: ｻｲﾄ
A61: 金 額 | B61: 円 | I61: 月 | M61: 手 形 | P61: ％
B62: =$B$13 -> 285415 | E62: =+E13 ->  | Q62: 日
K63: 日 | M63: 相 殺 | O63: 有 | Q63: 無
A65: 品 名 | D65: 単位 | E65: 数量 | F65: 単価 | G65: 金 額 | M65: 摘 要
A66: （形状・寸法）
A67: =$A$18 -> 砕石2005 | D67: =$D$18 -> t | E67: =$E$18 -> 120 | F67: =$F$18 -> 2000 | G67: =$G$18 -> 240000 | K67: =$K$18 -> 0 | M67: =$M$18 -> 0
A68: =$A$19 -> 1212
A69: =$A$20 -> 軽油 | D69: =$D$20 -> ℓ | E69: =$E$20 -> 59.5 | F69: =$F$20 -> 100 | G69: =$G$20 -> 5950 | K69: =$K$20 -> 0 | M69: =$M$20 -> 0
A70: =$A$21 -> 0
A71: =$A$22 -> 軽油引取税 | D71: =$D$22 -> ℓ | E71: =$E$22 -> 59.5 | F71: =$F$22 -> 32.1 | G71: =$G$22 -> 1910 | K71: =$K$22 -> 0 | M71: =$M$22 -> 0
A72: =$A$23 -> 0
A73: =$A$24 -> 購読料 | D73: =$D$24 -> 月 | E73: =$E$24 -> 12 | F73: =$F$24 -> 1000 | G73: =$G$24 -> 12000 | K73: =$K$24 -> ＊ | M73: =$M$24 -> 0
A74: =$A$25 -> 2023.10-2024.9
A75: =$A$26 -> 0 | D75: =$D$26 -> 0 | E75: =$E$26 -> 0 | F75: =$F$26 -> 0 | G75: =$G$26 -> 0 | K75: =$K$26 -> 0 | M75: =$M$26 -> 0
A76: =$A$27 -> 0
A77: =$A$28 -> 0 | D77: =$D$28 -> 0 | E77: =$E$28 -> 0 | F77: =$F$28 -> 0 | G77: =$G$28 -> 0 | K77: =$K$28 -> 0 | M77: =$M$28 -> 0
A78: =$A$29 -> 0
A79: =$A$30 -> 0 | D79: =$D$30 -> 0 | E79: =$E$30 -> 0 | F79: =$F$30 -> 0 | G79: =$G$30 -> 0 | K79: =$K$30 -> 0 | M79: =$M$30 -> 0
A80: =$A$31 -> 0
A81: =$A$32 -> 0 | D81: =$D$32 -> 0 | E81: =$E$32 -> 0 | F81: =$F$32 -> 0 | G81: =$G$32 -> 0 | K81: =$K$32 -> 0 | M81: =$M$32 -> 0
A82: =$A$33 -> 0
A83: =$A$34 -> 品代計 | G83: =$G$34 -> 259860
A84: =$A$35 -> 消費税 | G84: =$G$35 -> 25555
A85: =$A$36 -> 合 計 | D85: =$E$36 -> 0 | G85: =$G$36 -> 285415
B87: 本体 | D87: =+D38 -> 消費税 | F87: =+F38 -> 税込 | K87: 本体
A88: 10％対象 | B88: =$B$39 -> 245950 | D88: =$D$39 -> 24595 | F88: =$F$39 -> 270545 | I88: 非課税対象 | K88: =+K39 -> 0
A89: ＊8％対象 | B89: =+B40 -> 12000 | D89: =+D40 -> 960 | F89: =+F40 -> 12960 | I89: 不課税対象 | K89: =+K40 -> 1910
A90: ＊印は軽減税率(8％)適用商品
A92: 経 理 部 | D92: 担当部 | G92: 部 ・ 事業部 | N92: 工 場
N95: 工事稟議No
A98: （経理部控） | D98: 請 求 書 | P98: No. | Q98: =$Q$1 -> 1
E99: =$E$2 -> 2023-10-31
A100: ＳＫマテリアル株式会社 御中
H101: 〒 | I101: =$I$4 -> 350-1305
A102: 納入場所 | B102: =$B$5 -> 狭山市○○現場 | H102: 住所 | I102: =$I$5 -> 埼玉県狭山市入間川〇丁目〇番〇号
H103: 社名 | I103: =$I$6 -> 〇〇建材株式会社 | Q103: 印
A104: =$A$7 -> 10 | B104: =$B$7 -> 2023-10-01 | H104: 電話 | I104: =$I$7 -> 04-1111-11111
B105: =$B$8 -> 2023-10-31 | H105: 適格請求書 発行事業者登録番号 | J105: =$J$8 -> T | K105: =+K57 -> 4 | L105: - | M105: =+M57 -> 1234 | N105: - | O105: =+O57 -> 5678 | P105: - | Q105: =+Q57 -> 9123
I107: 支 払 日 | M107: 支払条件
A108: 下記のとおり請求いたします。 | M108: 現 金 | P108: ％ | Q108: ｻｲﾄ
A109: 金 額 | B109: 円 | I109: 月 | M109: 手 形 | P109: ％
B110: =$B$13 -> 285415 | E110: =+E62 ->  | Q110: 日
K111: 日 | M111: 相 殺 | O111: 有 | Q111: 無
A113: 品 名 | D113: 単位 | E113: 数量 | F113: 単価 | G113: 金 額 | M113: 摘 要
A114: （形状・寸法）
A115: =$A$18 -> 砕石2005 | D115: =$D$18 -> t | E115: =$E$18 -> 120 | F115: =$F$18 -> 2000 | G115: =$G$18 -> 240000 | K115: =$K$18 -> 0 | M115: =$M$18 -> 0
A116: =$A$19 -> 1212
A117: =$A$20 -> 軽油 | D117: =$D$20 -> ℓ | E117: =$E$20 -> 59.5 | F117: =$F$20 -> 100 | G117: =$G$20 -> 5950 | K117: =$K$20 -> 0 | M117: =$M$20 -> 0
A118: =$A$21 -> 0
A119: =$A$22 -> 軽油引取税 | D119: =$D$22 -> ℓ | E119: =$E$22 -> 59.5 | F119: =$F$22 -> 32.1 | G119: =$G$22 -> 1910 | K119: =$K$22 -> 0 | M119: =$M$22 -> 0
A120: =$A$23 -> 0
A121: =$A$24 -> 購読料 | D121: =$D$24 -> 月 | E121: =$E$24 -> 12 | F121: =$F$24 -> 1000 | G121: =$G$24 -> 12000 | K121: =$K$24 -> ＊ | M121: =$M$24 -> 0
A122: =$A$25 -> 2023.10-2024.9
A123: =$A$26 -> 0 | D123: =$D$26 -> 0 | E123: =$E$26 -> 0 | F123: =$F$26 -> 0 | G123: =$G$26 -> 0 | K123: =$K$26 -> 0 | M123: =$M$26 -> 0
A124: =$A$27 -> 0
A125: =$A$28 -> 0 | D125: =$D$28 -> 0 | E125: =$E$28 -> 0 | F125: =$F$28 -> 0 | G125: =$G$28 -> 0 | K125: =$K$28 -> 0 | M125: =$M$28 -> 0
A126: =$A$29 -> 0
A127: =$A$30 -> 0 | D127: =$D$30 -> 0 | E127: =$E$30 -> 0 | F127: =$F$30 -> 0 | G127: =$G$30 -> 0 | K127: =$K$30 -> 0 | M127: =$M$30 -> 0
A128: =$A$31 -> 0
A129: =$A$32 -> 0 | D129: =$D$32 -> 0 | E129: =$E$32 -> 0 | F129: =$F$32 -> 0 | G129: =$G$32 -> 0 | K129: =$K$32 -> 0 | M129: =$M$32 -> 0
A130: =$A$33 -> 0
A131: =$A$34 -> 品代計 | G131: =$G$34 -> 259860
A132: =$A$35 -> 消費税 | G132: =$G$35 -> 25555
A133: =$A$36 -> 合 計 | D133: =$E$36 -> 0 | G133: =$G$36 -> 285415
B135: 本体 | D135: =+D87 -> 消費税 | F135: =+F87 -> 税込 | K135: 本体
A136: 10％対象 | B136: =$B$39 -> 245950 | D136: =$D$39 -> 24595 | F136: =$F$39 -> 270545 | I136: 非課税対象 | K136: =+K39 -> 0
A137: ＊8％対象 | B137: =+B40 -> 12000 | D137: =+D40 -> 960 | F137: =+F40 -> 12960 | I137: 不課税対象 | K137: =+K40 -> 1910
A138: ＊印は軽減税率(8％)適用商品
A140: 経 理 部 | D140: 担当部 | G140: 部 ・ 事業部 | N140: 工 場
N143: 工事稟議No
